[Event "Late-Titled-Tuesday-Blitz-February-06-2024"]
[Site "Chess.com"]
[Date "2024.02.06"]
[Round "6"]
[White "Supergiuly"]
[Black "Bala-Afiada"]
[Result "1/2-1/2"]
[WhiteElo "2311"]
[BlackElo "2026"]
[TimeControl "180+1"]
[EndTime "15:06:44 PST"]
[Termination "Game drawn by repetition"]

1. g3 {[%clk 0:03:00.9]} 1... c6 {[%clk 0:02:59.3]} 2. Bg2 {[%clk 0:03:00.8]}
2... d5 {[%clk 0:02:59.3]} 3. Nf3 {[%clk 0:03:00.9]} 3... Nf6 {[%clk 0:02:58.1]}
4. d3 {[%clk 0:03:01.5]} 4... Bg4 {[%clk 0:02:58.1]} 5. O-O {[%clk 0:03:01.9]}
5... Nbd7 {[%clk 0:02:56.8]} 6. h3 {[%clk 0:03:02.2]} 6... Bh5 {[%clk
0:02:56.8]} 7. Nbd2 {[%clk 0:03:02.6]} 7... e5 {[%clk 0:02:56.1]} 8. e4 {[%clk
0:03:02.9]} 8... dxe4 {[%clk 0:02:53.7]} 9. dxe4 {[%clk 0:03:03.8]} 9... Be7
{[%clk 0:02:46.8]} 10. Nc4 {[%clk 0:03:00.3]} 10... Qc7 {[%clk 0:02:46.8]} 11.
Re1 {[%clk 0:02:57.1]} 11... O-O {[%clk 0:02:43.5]} 12. Bg5 {[%clk 0:02:51.4]}
12... Rad8 {[%clk 0:02:42.2]} 13. Qe2 {[%clk 0:02:48]} 13... h6 {[%clk
0:02:38.9]} 14. Bxf6 {[%clk 0:02:47.2]} 14... Nxf6 {[%clk 0:02:32.8]} 15. g4
{[%clk 0:02:45.5]} 15... Bg6 {[%clk 0:02:30.6]} 16. Nfxe5 {[%clk 0:02:45.7]}
16... Rd4 {[%clk 0:01:57.9]} 17. Nxg6 {[%clk 0:02:42.3]} 17... fxg6 {[%clk
0:01:58]} 18. c3 {[%clk 0:02:35.8]} 18... Rd7 {[%clk 0:01:47.7]} 19. e5 {[%clk
0:02:28.6]} 19... Nd5 {[%clk 0:01:44]} 20. Bxd5+ {[%clk 0:02:27.1]} 20... Rxd5
{[%clk 0:01:43.2]} 21. Rad1 {[%clk 0:02:23.3]} 21... Rfd8 {[%clk 0:01:37.8]} 22.
Rxd5 {[%clk 0:02:09.6]} 22... Rxd5 {[%clk 0:01:38.2]} 23. Rd1 {[%clk 0:02:09.7]}
23... Qd7 {[%clk 0:01:18.8]} 24. Rxd5 {[%clk 0:01:57.4]} 24... Qxd5 {[%clk
0:01:19.7]} 25. a3 {[%clk 0:01:48.2]} 25... b5 {[%clk 0:01:08.6]} 26. Nd2 {[%clk
0:01:43.1]} 26... Bc5 {[%clk 0:00:58.3]} 27. Nf3 {[%clk 0:01:37]} 27... a5
{[%clk 0:00:47.1]} 28. e6 {[%clk 0:01:35.3]} 28... Be7 {[%clk 0:00:44.3]} 29.
Nd4 {[%clk 0:01:31.5]} 29... b4 {[%clk 0:00:34.4]} 30. axb4 {[%clk 0:01:29]}
30... axb4 {[%clk 0:00:34.9]} 31. Qf3 {[%clk 0:01:22.2]} 31... Qxf3 {[%clk
0:00:27.7]} 32. Nxf3 {[%clk 0:01:23.1]} 32... bxc3 {[%clk 0:00:28.3]} 33. bxc3
{[%clk 0:01:23]} 33... Bf6 {[%clk 0:00:26.1]} 34. Nd4 {[%clk 0:01:03]} 34...
Bxd4 {[%clk 0:00:20.5]} 35. cxd4 {[%clk 0:01:03.9]} 35... Kf8 {[%clk 0:00:21.1]}
36. f4 {[%clk 0:01:04.3]} 36... Ke7 {[%clk 0:00:21.7]} 37. f5 {[%clk 0:01:04.1]}
37... gxf5 {[%clk 0:00:22.4]} 38. gxf5 {[%clk 0:01:05]} 38... g6 {[%clk
0:00:21.9]} 39. fxg6 {[%clk 0:01:03.3]} 39... Kxe6 {[%clk 0:00:22.4]} 40. h4
{[%clk 0:00:42.4]} 40... h5 {[%clk 0:00:22.6]} 41. Kf2 {[%clk 0:00:42.8]} 41...
Kf6 {[%clk 0:00:22.6]} 42. g7 {[%clk 0:00:43.4]} 42... Kxg7 {[%clk 0:00:22.5]}
43. Kf3 {[%clk 0:00:42.5]} 43... Kf7 {[%clk 0:00:19.1]} 44. Ke3 {[%clk
0:00:41.4]} 44... Ke7 {[%clk 0:00:16.4]} 45. Kd3 {[%clk 0:00:41.4]} 45... Kd7
{[%clk 0:00:14.5]} 46. Ke4 {[%clk 0:00:37.8]} 46... Ke6 {[%clk 0:00:13.9]} 47.
Ke3 {[%clk 0:00:36.3]} 47... Kd5 {[%clk 0:00:13.3]} 48. Kd3 {[%clk 0:00:35.5]}
48... Kd6 {[%clk 0:00:12.6]} 49. Kd2 {[%clk 0:00:31.2]} 49... Kd5 {[%clk
0:00:10.4]} 50. Kd3 {[%clk 0:00:31.4]} 50... Kd6 {[%clk 0:00:06.9]} 51. Ke4
{[%clk 0:00:31.2]} 51... Ke6 {[%clk 0:00:07.2]} 52. Kf4 {[%clk 0:00:31.9]} 52...
Kf6 {[%clk 0:00:07.5]} 53. Ke4 {[%clk 0:00:29.5]} 53... Ke6 {[%clk 0:00:08]}
1/2-1/2

[Event "Late-Titled-Tuesday-Blitz-February-06-2024"]
[Site "Chess.com"]
[Date "2024.02.06"]
[Round "6"]
[White "igorkovalenko"]
[Black "GMWSO"]
[Result "0-1"]
[WhiteElo "3002"]
[BlackElo "3098"]
[TimeControl "180+1"]
[EndTime "15:06:45 PST"]
[Termination "GMWSO won by resignation"]

1. c4 {[%clk 0:02:55.3]} 1... e5 {[%clk 0:02:57.7]} 2. Nc3 {[%clk 0:02:55.4]}
2... Bb4 {[%clk 0:02:57.2]} 3. Qb3 {[%clk 0:02:55]} 3... Nc6 {[%clk 0:02:50.4]}
4. Nd5 {[%clk 0:02:54.9]} 4... a5 {[%clk 0:02:46.3]} 5. Nf3 {[%clk 0:02:54.1]}
5... e4 {[%clk 0:02:40.3]} 6. Qe3 {[%clk 0:02:49.4]} 6... f5 {[%clk 0:02:34.5]}
7. a3 {[%clk 0:02:38.5]} 7... Be7 {[%clk 0:02:26.2]} 8. Nd4 {[%clk 0:02:38.5]}
8... Nxd4 {[%clk 0:02:09]} 9. Qxd4 {[%clk 0:02:39.4]} 9... Nf6 {[%clk
0:02:09.2]} 10. Nxe7 {[%clk 0:02:37.6]} 10... Qxe7 {[%clk 0:02:10.1]} 11. e3
{[%clk 0:02:37.6]} 11... O-O {[%clk 0:02:06.3]} 12. Be2 {[%clk 0:02:30.3]} 12...
c5 {[%clk 0:02:04.1]} 13. Qc3 {[%clk 0:02:28.1]} 13... d5 {[%clk 0:01:44.7]} 14.
O-O {[%clk 0:02:27.6]} 14... Be6 {[%clk 0:01:35.5]} 15. b3 {[%clk 0:02:26.7]}
15... f4 {[%clk 0:01:31.6]} 16. exf4 {[%clk 0:02:19.2]} 16... d4 {[%clk
0:01:31.2]} 17. Qg3 {[%clk 0:02:19.8]} 17... Bf5 {[%clk 0:01:22.2]} 18. d3
{[%clk 0:01:53.3]} 18... Rae8 {[%clk 0:01:02.1]} 19. Bd2 {[%clk 0:01:33.4]}
19... exd3 {[%clk 0:01:01.3]} 20. Bxd3 {[%clk 0:01:33.4]} 20... Nh5 {[%clk
0:01:01.5]} 21. Qf3 {[%clk 0:01:34]} 21... Bxd3 {[%clk 0:01:01.5]} 22. Qxd3
{[%clk 0:01:34.9]} 22... Nxf4 {[%clk 0:00:57.9]} 23. Bxf4 {[%clk 0:01:34.7]}
23... Rxf4 {[%clk 0:00:58.6]} 24. Qd2 {[%clk 0:01:35.3]} 24... Qc7 {[%clk
0:00:48.8]} 25. b4 {[%clk 0:01:22.8]} 25... b6 {[%clk 0:00:43.1]} 26. bxa5
{[%clk 0:01:21]} 26... bxa5 {[%clk 0:00:42.6]} 27. Rab1 {[%clk 0:01:09.8]} 27...
Rf5 {[%clk 0:00:27.1]} 28. g3 {[%clk 0:00:53]} 28... Qf7 {[%clk 0:00:22.2]} 29.
Qc2 {[%clk 0:00:34.2]} 29... h5 {[%clk 0:00:21.7]} 30. Rb7 {[%clk 0:00:31.5]}
30... Qf6 {[%clk 0:00:17.1]} 31. Rb6 {[%clk 0:00:24.8]} 31... Qf7 {[%clk
0:00:15.6]} 32. Rb7 {[%clk 0:00:24.6]} 32... Qf6 {[%clk 0:00:15.8]} 33. Rb6
{[%clk 0:00:24.9]} 33... Re6 {[%clk 0:00:16.2]} 34. Rb8+ {[%clk 0:00:16.4]}
34... Kh7 {[%clk 0:00:16.2]} 35. Rd8 {[%clk 0:00:15.5]} 35... Qg6 {[%clk
0:00:12]} 36. Rd7 {[%clk 0:00:13.6]} 36... h4 {[%clk 0:00:11.7]} 37. Qd3 {[%clk
0:00:12.2]} 37... h3 {[%clk 0:00:11.5]} 38. Qd2 {[%clk 0:00:07.7]} 38... Rf3
{[%clk 0:00:10.4]} 39. Qd1 {[%clk 0:00:07.7]} 39... Ref6 {[%clk 0:00:09.6]} 40.
Rd5 {[%clk 0:00:07.5]} 40... R3f5 {[%clk 0:00:09.5]} 41. Rxf5 {[%clk 0:00:06.4]}
41... Qxf5 {[%clk 0:00:10.4]} 42. Qe2 {[%clk 0:00:05.8]} 42... Re6 {[%clk
0:00:10.7]} 43. Qd2 {[%clk 0:00:05.2]} 43... Qf3 {[%clk 0:00:10.6]} 0-1

[Event "Late-Titled-Tuesday-Blitz-February-06-2024"]
[Site "Chess.com"]
[Date "2024.02.06"]
[Round "6"]
[White "edgarhay012"]
[Black "Fandorine"]
[Result "0-1"]
[WhiteElo "2590"]
[BlackElo "2938"]
[TimeControl "180+1"]
[EndTime "15:06:45 PST"]
[Termination "Fandorine won on time"]

1. e4 {[%clk 0:03:00.9]} 1... e5 {[%clk 0:02:59.6]} 2. Nf3 {[%clk 0:03:01.1]}
2... Nc6 {[%clk 0:02:59.3]} 3. Bb5 {[%clk 0:02:59.6]} 3... a6 {[%clk 0:02:59.5]}
4. Ba4 {[%clk 0:02:59.8]} 4... Nf6 {[%clk 0:02:59.9]} 5. O-O {[%clk 0:02:59.9]}
5... Be7 {[%clk 0:03:00.1]} 6. Bxc6 {[%clk 0:02:59.1]} 6... dxc6 {[%clk
0:03:00.1]} 7. d3 {[%clk 0:03:00]} 7... Nd7 {[%clk 0:03:00.5]} 8. Nbd2 {[%clk
0:03:00.4]} 8... O-O {[%clk 0:03:00.4]} 9. Nc4 {[%clk 0:03:00.7]} 9... f6 {[%clk
0:02:57.2]} 10. Nh4 {[%clk 0:03:00.5]} 10... Rf7 {[%clk 0:02:54.1]} 11. Nf5
{[%clk 0:02:58.6]} 11... Bf8 {[%clk 0:02:48.9]} 12. Qf3 {[%clk 0:02:58.1]} 12...
Nc5 {[%clk 0:02:44.1]} 13. Bd2 {[%clk 0:02:38.2]} 13... Ne6 {[%clk 0:02:43.1]}
14. Rae1 {[%clk 0:02:34.4]} 14... b6 {[%clk 0:02:40.6]} 15. Qg3 {[%clk 0:02:31]}
15... Kh8 {[%clk 0:02:39]} 16. Kh1 {[%clk 0:02:28.2]} 16... a5 {[%clk
0:02:38.6]} 17. f4 {[%clk 0:02:25.9]} 17... exf4 {[%clk 0:02:36.4]} 18. Bxf4
{[%clk 0:02:26.8]} 18... Nxf4 {[%clk 0:02:35]} 19. Rxf4 {[%clk 0:02:27.7]} 19...
g6 {[%clk 0:02:23.4]} 20. Nfe3 {[%clk 0:02:25.5]} 20... Be6 {[%clk 0:02:17.7]}
21. Ref1 {[%clk 0:02:20.8]} 21... Qe7 {[%clk 0:01:59.6]} 22. Rh4 {[%clk
0:02:09]} 22... b5 {[%clk 0:01:23.1]} 23. Nd2 {[%clk 0:02:02.8]} 23... Qc5
{[%clk 0:01:23.4]} 24. Nb3 {[%clk 0:01:32.8]} 24... Qg5 {[%clk 0:01:04.2]} 25.
Qf2 {[%clk 0:01:11.9]} 25... c5 {[%clk 0:00:44]} 26. Nd2 {[%clk 0:01:06.9]}
26... Qe5 {[%clk 0:00:34.7]} 27. c3 {[%clk 0:00:44.7]} 27... Qd6 {[%clk
0:00:31.5]} 28. Nf3 {[%clk 0:00:22]} 28... Re8 {[%clk 0:00:30.4]} 29. d4 {[%clk
0:00:18.8]} 29... cxd4 {[%clk 0:00:24.3]} 30. Nxd4 {[%clk 0:00:19.2]} 30... Bd7
{[%clk 0:00:22.4]} 31. Nd5 {[%clk 0:00:13.9]} 31... Bg7 {[%clk 0:00:21.3]} 32.
Qf3 {[%clk 0:00:07.6]} 32... Kg8 {[%clk 0:00:19.7]} 33. Ne3 {[%clk 0:00:04]}
33... c5 {[%clk 0:00:18.1]} 34. Ne2 {[%clk 0:00:03.5]} 34... Bc6 {[%clk
0:00:17.5]} 35. Nd5 {[%clk 0:00:03]} 35... f5 {[%clk 0:00:16.7]} 36. Ng3 {[%clk
0:00:02.6]} 36... Rff8 {[%clk 0:00:14.2]} 37. Rd1 {[%clk 0:00:01.2]} 37... fxe4
{[%clk 0:00:14.1]} 38. Nxe4 {[%clk 0:00:01.9]} 38... Rxf3 {[%clk 0:00:09.8]} 39.
Nxd6 {[%clk 0:00:01.8]} 39... Rd3 {[%clk 0:00:10.6]} 0-1

[Event "Late-Titled-Tuesday-Blitz-February-06-2024"]
[Site "Chess.com"]
[Date "2024.02.06"]
[Round "6"]
[White "GAusal"]
[Black "ChadBiryani"]
[Result "0-1"]
[WhiteElo "2295"]
[BlackElo "2458"]
[TimeControl "180+1"]
[EndTime "15:06:45 PST"]
[Termination "ChadBiryani won on time"]

1. d4 {[%clk 0:02:49.8]} 1... f5 {[%clk 0:02:59]} 2. g3 {[%clk 0:02:49.2]} 2...
Nf6 {[%clk 0:02:59]} 3. Bg2 {[%clk 0:02:48.1]} 3... e6 {[%clk 0:02:57.3]} 4. Nh3
{[%clk 0:02:46.1]} 4... Be7 {[%clk 0:02:57.3]} 5. O-O {[%clk 0:02:42.2]} 5...
O-O {[%clk 0:02:57.7]} 6. Nf4 {[%clk 0:02:41.4]} 6... d6 {[%clk 0:02:55.6]} 7.
Nc3 {[%clk 0:02:37.2]} 7... Qe8 {[%clk 0:02:52.1]} 8. e4 {[%clk 0:02:34.4]} 8...
e5 {[%clk 0:02:48.8]} 9. Nfd5 {[%clk 0:02:31.7]} 9... Bd8 {[%clk 0:02:41.6]} 10.
dxe5 {[%clk 0:02:26.3]} 10... dxe5 {[%clk 0:02:34.8]} 11. exf5 {[%clk 0:02:21]}
11... Nc6 {[%clk 0:02:27.1]} 12. g4 {[%clk 0:02:14.4]} 12... Nd4 {[%clk
0:01:54.3]} 13. Nxf6+ {[%clk 0:02:10.2]} 13... Bxf6 {[%clk 0:01:50.9]} 14. Ne4
{[%clk 0:02:05.5]} 14... Bd7 {[%clk 0:01:43.7]} 15. c3 {[%clk 0:02:01.9]} 15...
Nc6 {[%clk 0:01:38.5]} 16. Qb3+ {[%clk 0:01:58.3]} 16... Kh8 {[%clk 0:01:38]}
17. Qxb7 {[%clk 0:01:53.8]} 17... Be7 {[%clk 0:01:30.5]} 18. Be3 {[%clk
0:01:51]} 18... Rb8 {[%clk 0:01:26.9]} 19. Qxc7 {[%clk 0:01:46]} 19... Rc8
{[%clk 0:01:21.8]} 20. Qb7 {[%clk 0:01:42.2]} 20... Rb8 {[%clk 0:01:22.5]} 21.
Qa6 {[%clk 0:01:39.1]} 21... Rxb2 {[%clk 0:01:22.6]} 22. Rab1 {[%clk 0:01:25.3]}
22... Qb8 {[%clk 0:00:59.5]} 23. Rxb2 {[%clk 0:01:03.7]} 23... Qxb2 {[%clk
0:01:00.4]} 24. Nc5 {[%clk 0:00:59.3]} 24... Nb8 {[%clk 0:00:58.5]} 25. Qxa7
{[%clk 0:00:56.9]} 25... Rd8 {[%clk 0:00:32]} 26. Ne6 {[%clk 0:00:42.8]} 26...
Rc8 {[%clk 0:00:22.5]} 27. Bb7 {[%clk 0:00:33.1]} 27... Rg8 {[%clk 0:00:14.8]}
28. Be4 {[%clk 0:00:20.7]} 28... Rc8 {[%clk 0:00:13.9]} 29. Bb7 {[%clk
0:00:16.7]} 29... Rg8 {[%clk 0:00:12.2]} 30. Be4 {[%clk 0:00:16.5]} 30... Rc8
{[%clk 0:00:12.7]} 31. Qa5 {[%clk 0:00:13.6]} 31... Qe2 {[%clk 0:00:11.6]} 32.
Qxe5 {[%clk 0:00:12.9]} 32... Qxg4+ {[%clk 0:00:11.3]} 33. Kh1 {[%clk
0:00:10.5]} 33... Nc6 {[%clk 0:00:09.3]} 34. Bxc6 {[%clk 0:00:08.6]} 34... Bxc6+
{[%clk 0:00:09.3]} 35. f3 {[%clk 0:00:09.1]} 35... Bxf3+ {[%clk 0:00:09.5]} 36.
Rxf3 {[%clk 0:00:09]} 36... Qxf3+ {[%clk 0:00:09.8]} 37. Kg1 {[%clk 0:00:09.7]}
37... Bf6 {[%clk 0:00:08.7]} 38. Qd6 {[%clk 0:00:07.1]} 38... Qxf5 {[%clk
0:00:07]} 39. Nf4 {[%clk 0:00:05.4]} 39... Bxc3 {[%clk 0:00:05.6]} 40. Nd5
{[%clk 0:00:01.2]} 40... Qg4+ {[%clk 0:00:05]} 0-1

[Event "Late-Titled-Tuesday-Blitz-February-06-2024"]
[Site "Chess.com"]
[Date "2024.02.06"]
[Round "6"]
[White "WPWPWP-2015"]
[Black "Yushko_Olga"]
[Result "1-0"]
[WhiteElo "2489"]
[BlackElo "2219"]
[TimeControl "180+1"]
[EndTime "15:06:46 PST"]
[Termination "WPWPWP-2015 won by checkmate"]

1. e4 {[%clk 0:03:00.9]} 1... g6 {[%clk 0:02:58.4]} 2. d4 {[%clk 0:02:59.9]}
2... Bg7 {[%clk 0:02:59]} 3. Nc3 {[%clk 0:02:59.6]} 3... d6 {[%clk 0:02:59.4]}
4. Nf3 {[%clk 0:02:59.1]} 4... Nf6 {[%clk 0:02:59.8]} 5. Bc4 {[%clk 0:02:58.4]}
5... O-O {[%clk 0:02:59.6]} 6. O-O {[%clk 0:02:58.3]} 6... Nbd7 {[%clk
0:02:58.8]} 7. e5 {[%clk 0:02:54.8]} 7... dxe5 {[%clk 0:02:57.4]} 8. dxe5 {[%clk
0:02:54.8]} 8... Ng4 {[%clk 0:02:57.5]} 9. e6 {[%clk 0:02:53.7]} 9... Nb6 {[%clk
0:02:50.7]} 10. exf7+ {[%clk 0:02:49.4]} 10... Kh8 {[%clk 0:02:51.5]} 11. Qxd8
{[%clk 0:02:43.9]} 11... Rxd8 {[%clk 0:02:51.2]} 12. Bd3 {[%clk 0:02:34.6]}
12... e6 {[%clk 0:01:50.8]} 13. Nb5 {[%clk 0:02:12.4]} 13... Nd5 {[%clk
0:01:34.8]} 14. h3 {[%clk 0:01:58.6]} 14... Ngf6 {[%clk 0:01:31.8]} 15. Ne5
{[%clk 0:01:57.8]} 15... c6 {[%clk 0:01:26.9]} 16. Nd4 {[%clk 0:01:36.1]} 16...
Nb4 {[%clk 0:01:22.8]} 17. Bg5 {[%clk 0:01:35.4]} 17... Nxd3 {[%clk 0:01:14.1]}
18. cxd3 {[%clk 0:01:33.5]} 18... Rxd4 {[%clk 0:01:12.1]} 19. Bxf6 {[%clk
0:01:26.2]} 19... Bd7 {[%clk 0:01:10.3]} 20. Bxg7+ {[%clk 0:01:01.9]} 20... Kxg7
{[%clk 0:01:09.8]} 21. f4 {[%clk 0:01:01.9]} 21... Rd8 {[%clk 0:01:02.2]} 22.
Rae1 {[%clk 0:00:59.3]} 22... Bc8 {[%clk 0:01:01.4]} 23. Re3 {[%clk 0:00:54.8]}
23... Rb4 {[%clk 0:00:47.5]} 24. b3 {[%clk 0:00:53.1]} 24... Rdd4 {[%clk
0:00:47]} 25. g3 {[%clk 0:00:51.4]} 25... a5 {[%clk 0:00:45]} 26. Rc1 {[%clk
0:00:39.9]} 26... a4 {[%clk 0:00:44.7]} 27. Rc4 {[%clk 0:00:38.6]} 27... axb3
{[%clk 0:00:43.7]} 28. axb3 {[%clk 0:00:38]} 28... h5 {[%clk 0:00:28.1]} 29. h4
{[%clk 0:00:35.1]} 29... Rdxc4 {[%clk 0:00:17.9]} 30. dxc4 {[%clk 0:00:34.7]}
30... Kf8 {[%clk 0:00:09.7]} 31. Kf2 {[%clk 0:00:33.5]} 31... Ke7 {[%clk
0:00:08.6]} 32. Rd3 {[%clk 0:00:32.6]} 32... Rb6 {[%clk 0:00:06.9]} 33. c5
{[%clk 0:00:26.1]} 33... Rb5 {[%clk 0:00:05.7]} 34. Rc3 {[%clk 0:00:24.9]} 34...
Ra5 {[%clk 0:00:05.1]} 35. Ke3 {[%clk 0:00:23.4]} 35... Ra1 {[%clk 0:00:04.9]}
36. Rd3 {[%clk 0:00:22.2]} 36... Re1+ {[%clk 0:00:05.1]} 37. Kd4 {[%clk
0:00:22.3]} 37... Rg1 {[%clk 0:00:05.4]} 38. b4 {[%clk 0:00:22]} 38... Rg2
{[%clk 0:00:05.3]} 39. Kc3 {[%clk 0:00:21.6]} 39... Rg1 {[%clk 0:00:05.4]} 40.
Kb2 {[%clk 0:00:20.2]} 40... Rg2+ {[%clk 0:00:05.6]} 41. Ka3 {[%clk 0:00:20.5]}
41... Rg1 {[%clk 0:00:05.7]} 42. Rd8 {[%clk 0:00:20]} 42... Kxd8 {[%clk
0:00:04]} 43. f8=Q+ {[%clk 0:00:19.6]} 43... Kc7 {[%clk 0:00:04.9]} 44. Qd6#
{[%clk 0:00:19.8]} 1-0

[Event "Late-Titled-Tuesday-Blitz-February-06-2024"]
[Site "Chess.com"]
[Date "2024.02.06"]
[Round "6"]
[White "falzehope0"]
[Black "HandKnit"]
[Result "0-1"]
[WhiteElo "2340"]
[BlackElo "2508"]
[TimeControl "180+1"]
[EndTime "15:06:47 PST"]
[Termination "HandKnit won by resignation"]

1. d4 {[%clk 0:03:00.9]} 1... Nf6 {[%clk 0:02:59.2]} 2. e3 {[%clk 0:02:53.8]}
2... c5 {[%clk 0:02:55.8]} 3. f4 {[%clk 0:02:53]} 3... cxd4 {[%clk 0:02:52.4]}
4. exd4 {[%clk 0:02:53.1]} 4... e6 {[%clk 0:02:51.5]} 5. Nf3 {[%clk 0:02:52.8]}
5... b6 {[%clk 0:02:50.7]} 6. Bd3 {[%clk 0:02:52.7]} 6... Bb7 {[%clk 0:02:50.6]}
7. Nbd2 {[%clk 0:02:51.7]} 7... d6 {[%clk 0:02:50.6]} 8. O-O {[%clk 0:02:51.1]}
8... Nbd7 {[%clk 0:02:51.1]} 9. Qe2 {[%clk 0:02:46.8]} 9... Be7 {[%clk
0:02:50.2]} 10. f5 {[%clk 0:02:46.6]} 10... exf5 {[%clk 0:02:43.3]} 11. Bxf5
{[%clk 0:02:47.4]} 11... O-O {[%clk 0:02:41.5]} 12. Qe1 {[%clk 0:02:37.8]} 12...
Rc8 {[%clk 0:02:34.8]} 13. c3 {[%clk 0:02:33]} 13... b5 {[%clk 0:02:22.3]} 14.
a3 {[%clk 0:02:32.5]} 14... a5 {[%clk 0:02:20.9]} 15. Qh4 {[%clk 0:02:31.2]}
15... g6 {[%clk 0:02:17.7]} 16. Bd3 {[%clk 0:02:28.8]} 16... Qb6 {[%clk
0:02:01.3]} 17. Ng5 {[%clk 0:02:14.7]} 17... Nh5 {[%clk 0:01:59]} 18. g4 {[%clk
0:02:02.8]} 18... Bxg5 {[%clk 0:01:49.6]} 19. Qxg5 {[%clk 0:02:00]} 19... Ng7
{[%clk 0:01:41.6]} 20. Ne4 {[%clk 0:01:47.6]} 20... Bxe4 {[%clk 0:01:18.8]} 21.
Bxe4 {[%clk 0:01:45]} 21... b4 {[%clk 0:01:18.8]} 22. axb4 {[%clk 0:01:43.6]}
22... axb4 {[%clk 0:01:18.9]} 23. Bd2 {[%clk 0:01:43.5]} 23... bxc3 {[%clk
0:01:16]} 24. bxc3 {[%clk 0:01:42.9]} 24... Ne6 {[%clk 0:01:12.7]} 25. Qh6
{[%clk 0:01:38.3]} 25... Nxd4 {[%clk 0:00:55.1]} 26. Rfb1 {[%clk 0:00:50.6]}
26... Ne2+ {[%clk 0:00:49.2]} 27. Kf1 {[%clk 0:00:34.8]} 27... Qc5 {[%clk
0:00:42.7]} 28. Kxe2 {[%clk 0:00:31.5]} 28... Qc4+ {[%clk 0:00:42.9]} 29. Bd3
{[%clk 0:00:29.5]} 29... Rfe8+ {[%clk 0:00:43.1]} 30. Be3 {[%clk 0:00:24.1]}
30... Qxg4+ {[%clk 0:00:43.2]} 31. Kd2 {[%clk 0:00:24.3]} 31... Ne5 {[%clk
0:00:38.2]} 32. Qf4 {[%clk 0:00:15.2]} 32... Qg2+ {[%clk 0:00:24.8]} 33. Qf2
{[%clk 0:00:15.4]} 33... Qd5 {[%clk 0:00:19.7]} 34. Qe2 {[%clk 0:00:14.8]} 34...
Nc4+ {[%clk 0:00:18.8]} 35. Kc2 {[%clk 0:00:12.4]} 35... Nxe3+ {[%clk
0:00:18.1]} 36. Kc1 {[%clk 0:00:12.4]} 36... Rxc3+ {[%clk 0:00:15.7]} 37. Kd2
{[%clk 0:00:08.7]} 37... Qd4 {[%clk 0:00:12.2]} 38. Rc1 {[%clk 0:00:07.5]} 38...
Nc4+ {[%clk 0:00:11.4]} 39. Ke1 {[%clk 0:00:06.4]} 39... Rxe2+ {[%clk
0:00:11.8]} 40. Bxe2 {[%clk 0:00:06.1]} 40... Rxc1+ {[%clk 0:00:11.6]} 41. Rxc1
{[%clk 0:00:07]} 41... Qd2+ {[%clk 0:00:11.7]} 42. Kf1 {[%clk 0:00:06.6]} 42...
Qxc1+ {[%clk 0:00:12.6]} 43. Kg2 {[%clk 0:00:07.2]} 43... Qd2 {[%clk 0:00:12.6]}
44. Kf2 {[%clk 0:00:07.6]} 44... Qe3+ {[%clk 0:00:12.4]} 45. Kf1 {[%clk
0:00:07.9]} 45... Ne5 {[%clk 0:00:12.9]} 46. Ke1 {[%clk 0:00:08.2]} 46... d5
{[%clk 0:00:13.3]} 47. Kd1 {[%clk 0:00:08.6]} 47... d4 {[%clk 0:00:13.8]} 48.
Bb5 {[%clk 0:00:08.3]} 48... d3 {[%clk 0:00:13.4]} 49. h4 {[%clk 0:00:07.6]}
49... Qe2+ {[%clk 0:00:13.5]} 0-1

[Event "Late-Titled-Tuesday-Blitz-February-06-2024"]
[Site "Chess.com"]
[Date "2024.02.06"]
[Round "6"]
[White "ProfessorChess101"]
[Black "Nouali_Mohamed"]
[Result "1-0"]
[WhiteElo "2801"]
[BlackElo "2572"]
[TimeControl "180+1"]
[EndTime "15:06:49 PST"]
[Termination "ProfessorChess101 won on time"]

1. d4 {[%clk 0:03:00.9]} 1... Nf6 {[%clk 0:02:59.5]} 2. c4 {[%clk 0:03:00.7]}
2... g6 {[%clk 0:02:59.9]} 3. Nc3 {[%clk 0:03:00.9]} 3... Bg7 {[%clk 0:03:00.4]}
4. e4 {[%clk 0:03:01.3]} 4... O-O {[%clk 0:03:00.9]} 5. Nf3 {[%clk 0:03:01.6]}
5... d6 {[%clk 0:03:01.2]} 6. Be2 {[%clk 0:03:02.1]} 6... c5 {[%clk 0:03:01.6]}
7. O-O {[%clk 0:02:43.2]} 7... cxd4 {[%clk 0:03:01.7]} 8. Nxd4 {[%clk
0:02:44.1]} 8... Nc6 {[%clk 0:03:02.3]} 9. Be3 {[%clk 0:02:44.8]} 9... Nxd4
{[%clk 0:03:02.4]} 10. Bxd4 {[%clk 0:02:44.1]} 10... Be6 {[%clk 0:03:03.3]} 11.
b3 {[%clk 0:02:41]} 11... Qa5 {[%clk 0:02:55.5]} 12. Qd3 {[%clk 0:02:37.3]}
12... Nd7 {[%clk 0:02:51.6]} 13. Rfd1 {[%clk 0:02:24.2]} 13... a6 {[%clk
0:02:20]} 14. Rab1 {[%clk 0:02:18.1]} 14... Bxd4 {[%clk 0:02:09.1]} 15. Qxd4
{[%clk 0:02:17.7]} 15... Rac8 {[%clk 0:01:55.3]} 16. a4 {[%clk 0:02:12.6]} 16...
Qg5 {[%clk 0:01:36]} 17. g3 {[%clk 0:01:58.9]} 17... a5 {[%clk 0:01:30.6]} 18.
Kg2 {[%clk 0:01:52]} 18... h5 {[%clk 0:01:22.2]} 19. h4 {[%clk 0:01:49.1]} 19...
Qc5 {[%clk 0:01:19.6]} 20. Nb5 {[%clk 0:01:43.9]} 20... Ne5 {[%clk 0:01:11]} 21.
f4 {[%clk 0:01:35.4]} 21... Nc6 {[%clk 0:00:52.8]} 22. Qc3 {[%clk 0:01:27.6]}
22... b6 {[%clk 0:00:16.7]} 23. Rd2 {[%clk 0:01:24.1]} 23... Rfd8 {[%clk
0:00:15.9]} 24. Rbd1 {[%clk 0:01:23.5]} 24... f6 {[%clk 0:00:15.7]} 25. Nd4
{[%clk 0:01:18.1]} 25... Nxd4 {[%clk 0:00:12.4]} 26. Rxd4 {[%clk 0:01:18.3]}
26... Bf7 {[%clk 0:00:11.5]} 27. g4 {[%clk 0:01:08.5]} 27... e5 {[%clk
0:00:10.7]} 28. R4d2 {[%clk 0:01:04.1]} 28... hxg4 {[%clk 0:00:05.5]} 29. Bxg4
{[%clk 0:01:05]} 29... Rb8 {[%clk 0:00:05.7]} 30. f5 {[%clk 0:01:04.3]} 30...
Kg7 {[%clk 0:00:04.7]} 31. Qg3 {[%clk 0:01:01.2]} 31... Kf8 {[%clk 0:00:02.3]}
32. Bh3 {[%clk 0:00:57.4]} 32... gxf5 {[%clk 0:00:02.4]} 33. Bxf5 {[%clk
0:00:58.3]} 33... Ke7 {[%clk 0:00:03]} 34. Qf2 {[%clk 0:00:52]} 34... Rg8+
{[%clk 0:00:03.8]} 35. Kh2 {[%clk 0:00:52.5]} 35... Qb4 {[%clk 0:00:03.7]} 36.
Rxd6 {[%clk 0:00:41]} 36... Qxd6 {[%clk 0:00:03.6]} 37. Rxd6 {[%clk 0:00:41.9]}
37... Kxd6 {[%clk 0:00:04.5]} 38. Qd2+ {[%clk 0:00:42.3]} 38... Ke7 {[%clk
0:00:05.1]} 39. h5 {[%clk 0:00:35.8]} 39... Rbd8 {[%clk 0:00:06]} 40. Qe3 {[%clk
0:00:30.4]} 40... Rd1 {[%clk 0:00:04]} 41. h6 {[%clk 0:00:24.4]} 41... Rb1
{[%clk 0:00:03.7]} 42. h7 {[%clk 0:00:22.5]} 42... Rh8 {[%clk 0:00:03.1]} 43.
Qxb6 {[%clk 0:00:21.6]} 43... Rb2+ {[%clk 0:00:03.3]} 44. Kg3 {[%clk 0:00:20.8]}
44... Kf8 {[%clk 0:00:02.3]} 45. Qxf6 {[%clk 0:00:19.2]} 1-0